[Event "Betsys MČR v online bleskovém šachu 2021"]
[Site "Chess.com"]
[Date "2021.04.17"]
[Round "4"]
[White "Tolja1"]
[Black "Countryside_58"]
[Result "1/2-1/2"]
[WhiteElo "2040"]
[BlackElo "2430"]
[TimeControl "180+1"]
[EndTime "9:38:07 PDT"]
[Termination "Remíza opakováním pozice"]

1. Nf3 {[%clk 0:03:00.9]} 1... Nc6 {[%clk 0:02:57.9]} 2. e4 {[%clk 0:02:55.8]}
2... e5 {[%clk 0:02:57.1]} 3. Bb5 {[%clk 0:02:54.8]} 3... Nd4 {[%clk 0:02:56.9]}
4. Nxd4 {[%clk 0:02:54.1]} 4... exd4 {[%clk 0:02:56.9]} 5. O-O {[%clk
0:02:53.3]} 5... Bc5 {[%clk 0:02:56.2]} 6. d3 {[%clk 0:02:48.4]} 6... Ne7 {[%clk
0:02:56]} 7. Ba4 {[%clk 0:02:42.2]} 7... c6 {[%clk 0:02:55.1]} 8. Bb3 {[%clk
0:02:40.2]} 8... O-O {[%clk 0:02:53.4]} 9. Nd2 {[%clk 0:02:35.5]} 9... d5 {[%clk
0:02:53.1]} 10. exd5 {[%clk 0:02:33.1]} 10... cxd5 {[%clk 0:02:49.3]} 11. Nf3
{[%clk 0:02:26.9]} 11... h6 {[%clk 0:02:44.7]} 12. Bf4 {[%clk 0:02:23.6]} 12...
Ng6 {[%clk 0:02:43.4]} 13. Bg3 {[%clk 0:02:20.8]} 13... Qf6 {[%clk 0:02:36.1]}
14. Re1 {[%clk 0:02:17.7]} 14... Be6 {[%clk 0:02:35.4]} 15. Qd2 {[%clk
0:02:15.8]} 15... a5 {[%clk 0:02:18.3]} 16. a3 {[%clk 0:02:12.7]} 16... b6
{[%clk 0:02:14.2]} 17. Ne5 {[%clk 0:02:05.2]} 17... Rad8 {[%clk 0:02:09.1]} 18.
Nxg6 {[%clk 0:01:55.4]} 18... Qxg6 {[%clk 0:02:07.5]} 19. Re2 {[%clk 0:01:53.4]}
19... Be7 {[%clk 0:01:50]} 20. Rae1 {[%clk 0:01:49.1]} 20... Bg5 {[%clk
0:01:49.4]} 21. Bf4 {[%clk 0:01:45.1]} 21... Bf6 {[%clk 0:01:47.8]} 22. Be5
{[%clk 0:01:39.9]} 22... Bg5 {[%clk 0:01:43.1]} 23. Bf4 {[%clk 0:01:39.1]} 23...
Bf6 {[%clk 0:01:33.5]} 24. Be5 {[%clk 0:01:35.3]} 24... Bg4 {[%clk 0:01:30.2]}
25. Bxf6 {[%clk 0:01:28.6]} 25... Qxf6 {[%clk 0:01:27.6]} 26. f3 {[%clk
0:01:25.6]} 26... Be6 {[%clk 0:01:26.2]} 27. Re5 {[%clk 0:01:22]} 27... Qg6
{[%clk 0:01:16.5]} 28. Qf2 {[%clk 0:01:19.9]} 28... h5 {[%clk 0:00:57.7]} 29.
Qxd4 {[%clk 0:01:16.4]} 29... Rd6 {[%clk 0:00:57.5]} 30. Qf4 {[%clk 0:01:04.8]}
30... Rfd8 {[%clk 0:00:56.1]} 31. Qg3 {[%clk 0:00:57.5]} 31... Qh6 {[%clk
0:00:43.9]} 32. h4 {[%clk 0:00:52.7]} 32... b5 {[%clk 0:00:39]} 33. c3 {[%clk
0:00:47]} 33... d4 {[%clk 0:00:19.8]} 34. Bxe6 {[%clk 0:00:44.9]} 34... Rxe6
{[%clk 0:00:19.6]} 35. Rxe6 {[%clk 0:00:41.2]} 35... fxe6 {[%clk 0:00:20.5]} 36.
cxd4 {[%clk 0:00:35.4]} 36... Rxd4 {[%clk 0:00:19.7]} 37. Qg5 {[%clk 0:00:32.6]}
37... Qxg5 {[%clk 0:00:18.7]} 38. hxg5 {[%clk 0:00:32.2]} 38... Kf7 {[%clk
0:00:18.8]} 39. Re5 {[%clk 0:00:30.7]} 39... b4 {[%clk 0:00:19.7]} 40. Rxa5
{[%clk 0:00:29.5]} 40... Rxd3 {[%clk 0:00:19.8]} 41. axb4 {[%clk 0:00:17.2]}
41... Rb3 {[%clk 0:00:19.6]} 42. b5 {[%clk 0:00:14.9]} 42... Rxb2 {[%clk
0:00:19]} 43. Kh2 {[%clk 0:00:14.4]} 43... Kg6 {[%clk 0:00:18.9]} 44. Ra7 {[%clk
0:00:13.7]} 44... Rxb5 {[%clk 0:00:17.1]} 45. Re7 {[%clk 0:00:13.5]} 45... Rxg5
{[%clk 0:00:15.8]} 46. Rxe6+ {[%clk 0:00:12.6]} 46... Kh7 {[%clk 0:00:15.5]} 47.
Re4 {[%clk 0:00:12.4]} 47... Rb5 {[%clk 0:00:14.9]} 48. Kh3 {[%clk 0:00:12.6]}
48... Kh6 {[%clk 0:00:14.9]} 49. Kh2 {[%clk 0:00:12.7]} 49... g6 {[%clk
0:00:14.6]} 50. Kh3 {[%clk 0:00:12.9]} 50... Rb1 {[%clk 0:00:14.8]} 51. g3
{[%clk 0:00:12.7]} 51... Rb2 {[%clk 0:00:13.3]} 52. f4 {[%clk 0:00:12.4]} 52...
Rb3 {[%clk 0:00:12]} 53. Re5 {[%clk 0:00:12.3]} 53... Kg7 {[%clk 0:00:11]} 54.
Rd5 {[%clk 0:00:12.3]} 54... Kf6 {[%clk 0:00:10.6]} 55. Rg5 {[%clk 0:00:12.1]}
55... Rb1 {[%clk 0:00:09.3]} 56. Re5 {[%clk 0:00:11.8]} 56... Rh1+ {[%clk
0:00:08.4]} 57. Kg2 {[%clk 0:00:11.2]} 57... Ra1 {[%clk 0:00:09.2]} 58. Kh3
{[%clk 0:00:11.5]} 58... Rh1+ {[%clk 0:00:08.7]} 59. Kg2 {[%clk 0:00:11.4]}
59... Ra1 {[%clk 0:00:09.1]} 60. Kh3 {[%clk 0:00:11.7]} 60... Rh1+ {[%clk
0:00:08.8]} 1/2-1/2

[Event "Betsys MČR v online bleskovém šachu 2021"]
[Site "Chess.com"]
[Date "2021.04.17"]
[Round "4"]
[White "Alesbar"]
[Black "EXTREME_STRATEGY007"]
[Result "0-1"]
[WhiteElo "1620"]
[BlackElo "1192"]
[TimeControl "180+1"]
[EndTime "9:38:07 PDT"]
[Termination "Uživatel EXTREME_STRATEGY007 zvítězil na čas"]

1. Nf3 {[%clk 0:03:00.9]} 1... c5 {[%clk 0:02:56]} 2. g3 {[%clk 0:03:00.3]} 2...
d5 {[%clk 0:02:52.7]} 3. Bg2 {[%clk 0:02:59.9]} 3... Nc6 {[%clk 0:02:49.3]} 4.
O-O {[%clk 0:02:58.9]} 4... e6 {[%clk 0:02:45.5]} 5. d4 {[%clk 0:02:57.7]} 5...
Nf6 {[%clk 0:02:41.3]} 6. c3 {[%clk 0:02:57]} 6... Be7 {[%clk 0:02:27.6]} 7.
Nbd2 {[%clk 0:02:56.4]} 7... O-O {[%clk 0:02:15]} 8. Nb3 {[%clk 0:02:55.2]} 8...
c4 {[%clk 0:02:14.4]} 9. Nbd2 {[%clk 0:02:54.9]} 9... b5 {[%clk 0:02:13.7]} 10.
a3 {[%clk 0:02:53.8]} 10... a5 {[%clk 0:02:09.6]} 11. Qc2 {[%clk 0:02:50]} 11...
a4 {[%clk 0:02:07]} 12. e4 {[%clk 0:02:48.3]} 12... Na5 {[%clk 0:02:05.3]} 13.
Ne5 {[%clk 0:02:40.9]} 13... Nb3 {[%clk 0:02:01.7]} 14. Rb1 {[%clk 0:02:37.5]}
14... Nd7 {[%clk 0:01:55.8]} 15. exd5 {[%clk 0:02:08.7]} 15... Nxe5 {[%clk
0:01:52.5]} 16. dxe6 {[%clk 0:01:53.8]} 16... Bxe6 {[%clk 0:01:46.4]} 17. dxe5
{[%clk 0:01:48.8]} 17... Rc8 {[%clk 0:01:37.5]} 18. Nf3 {[%clk 0:01:22]} 18...
Qb6 {[%clk 0:01:33.4]} 19. Be3 {[%clk 0:01:15.2]} 19... Bc5 {[%clk 0:01:31.1]}
20. Bxc5 {[%clk 0:01:12]} 20... Qxc5 {[%clk 0:01:27.8]} 21. Rbd1 {[%clk
0:01:10.4]} 21... Bd5 {[%clk 0:01:22.9]} 22. Nd4 {[%clk 0:01:04.6]} 22... Bxg2
{[%clk 0:01:19.2]} 23. Kxg2 {[%clk 0:01:04.1]} 23... Qxe5 {[%clk 0:01:15.4]} 24.
Rfe1 {[%clk 0:01:00.1]} 24... Qc5 {[%clk 0:01:09.7]} 25. Qf5 {[%clk 0:00:49.7]}
25... Qxf5 {[%clk 0:01:06.7]} 26. Nxf5 {[%clk 0:00:49.5]} 26... Rfe8 {[%clk
0:00:56.7]} 27. Nd6 {[%clk 0:00:38]} 27... Rxe1 {[%clk 0:00:54.1]} 28. Rxe1
{[%clk 0:00:38.1]} 28... Rf8 {[%clk 0:00:51]} 29. Nxb5 {[%clk 0:00:35.8]} 29...
g6 {[%clk 0:00:47.9]} 30. Nd6 {[%clk 0:00:28]} 30... Na5 {[%clk 0:00:39.7]} 31.
Re4 {[%clk 0:00:26.5]} 31... Rb8 {[%clk 0:00:36.2]} 32. Nxc4 {[%clk 0:00:25.3]}
32... Nxc4 {[%clk 0:00:34.7]} 33. Rxc4 {[%clk 0:00:25]} 33... Rxb2 {[%clk
0:00:34.4]} 34. Rxa4 {[%clk 0:00:24.9]} 34... Rc2 {[%clk 0:00:34.7]} 35. c4
{[%clk 0:00:24.3]} 35... Rc3 {[%clk 0:00:34]} 36. h4 {[%clk 0:00:23.3]} 36...
Kg7 {[%clk 0:00:31.7]} 37. Kf1 {[%clk 0:00:20.8]} 37... Kf6 {[%clk 0:00:30.9]}
38. Ke2 {[%clk 0:00:18.4]} 38... Ke5 {[%clk 0:00:29.9]} 39. Ra7 {[%clk
0:00:16.4]} 39... Kf6 {[%clk 0:00:24]} 40. Ra4 {[%clk 0:00:13.4]} 40... Ke5
{[%clk 0:00:22.5]} 41. Ra5+ {[%clk 0:00:11.4]} 41... Kd4 {[%clk 0:00:20.7]} 42.
Ra7 {[%clk 0:00:08.4]} 42... Rxc4 {[%clk 0:00:19.2]} 43. Rxf7 {[%clk 0:00:06.8]}
43... Rc2+ {[%clk 0:00:18.6]} 44. Kf1 {[%clk 0:00:06.5]} 44... Rc1+ {[%clk
0:00:17.8]} 45. Kg2 {[%clk 0:00:06.2]} 45... Rc3 {[%clk 0:00:17.3]} 46. Rxh7
{[%clk 0:00:05.3]} 46... Rxa3 {[%clk 0:00:17.2]} 47. Re7 {[%clk 0:00:05]} 47...
Ra6 {[%clk 0:00:15.3]} 48. g4 {[%clk 0:00:03.8]} 48... Rf6 {[%clk 0:00:14.6]}
49. f3 {[%clk 0:00:02.5]} 49... Kd5 {[%clk 0:00:13.4]} 50. Kg3 {[%clk
0:00:02.1]} 50... Kd6 {[%clk 0:00:12.8]} 51. Re1 {[%clk 0:00:01.7]} 51... Kd5
{[%clk 0:00:11.9]} 52. h5 {[%clk 0:00:01.6]} 52... g5 {[%clk 0:00:09.7]} 0-1

[Event "Betsys MČR v online bleskovém šachu 2021"]
[Site "Chess.com"]
[Date "2021.04.17"]
[Round "4"]
[White "MametevArtem097"]
[Black "petrgnojek"]
[Result "1/2-1/2"]
[WhiteElo "1987"]
[BlackElo "2254"]
[TimeControl "180+1"]
[EndTime "9:38:13 PDT"]
[Termination "Remíza opakováním pozice"]

1. d4 {[%clk 0:03:00.9]} 1... Nf6 {[%clk 0:02:58.3]} 2. Nc3 {[%clk 0:03:00.8]}
2... d6 {[%clk 0:02:59.2]} 3. e4 {[%clk 0:02:59.8]} 3... g6 {[%clk 0:02:59.4]}
4. Be3 {[%clk 0:02:58.6]} 4... a6 {[%clk 0:02:59.2]} 5. f3 {[%clk 0:02:58.6]}
5... b5 {[%clk 0:02:57.8]} 6. Qd2 {[%clk 0:02:57.5]} 6... Nbd7 {[%clk
0:02:57.8]} 7. g4 {[%clk 0:02:56.8]} 7... Nb6 {[%clk 0:02:57.4]} 8. O-O-O {[%clk
0:02:50.7]} 8... Bb7 {[%clk 0:02:56.3]} 9. h4 {[%clk 0:02:48.8]} 9... h5 {[%clk
0:02:54.3]} 10. g5 {[%clk 0:02:46.1]} 10... Nfd7 {[%clk 0:02:54]} 11. Bh3 {[%clk
0:02:30.8]} 11... e6 {[%clk 0:02:52.9]} 12. d5 {[%clk 0:02:23.9]} 12... Qe7
{[%clk 0:02:48.1]} 13. dxe6 {[%clk 0:02:21]} 13... fxe6 {[%clk 0:02:49]} 14.
Nge2 {[%clk 0:02:19.2]} 14... O-O-O {[%clk 0:02:47.9]} 15. Nf4 {[%clk
0:02:17.6]} 15... Nc4 {[%clk 0:02:30.1]} 16. Qe2 {[%clk 0:02:10.7]} 16... d5
{[%clk 0:01:39.6]} 17. Nxg6 {[%clk 0:02:01]} 17... Qb4 {[%clk 0:01:33.3]} 18.
Na4 {[%clk 0:01:40.3]} 18... bxa4 {[%clk 0:01:28.9]} 19. c3 {[%clk 0:01:37.2]}
19... Qb5 {[%clk 0:01:05.1]} 20. Nxh8 {[%clk 0:01:19.8]} 20... dxe4 {[%clk
0:01:04.3]} 21. Bxe6 {[%clk 0:01:15.3]} 21... Nxe3 {[%clk 0:00:53.5]} 22. Qxe3
{[%clk 0:01:05.4]} 22... Bc5 {[%clk 0:00:47.9]} 23. Qf4 {[%clk 0:00:53.3]} 23...
Bd6 {[%clk 0:00:47]} 24. Rxd6 {[%clk 0:00:44.3]} 24... cxd6 {[%clk 0:00:46.7]}
25. Nf7 {[%clk 0:00:41.8]} 25... Rf8 {[%clk 0:00:32.3]} 26. Nxd6+ {[%clk
0:00:40.6]} 26... Kd8 {[%clk 0:00:32.5]} 27. Qxf8+ {[%clk 0:00:39.3]} 27... Nxf8
{[%clk 0:00:32.4]} 28. Nxb5 {[%clk 0:00:39.5]} 28... axb5 {[%clk 0:00:25.2]} 29.
Rd1+ {[%clk 0:00:32.9]} 29... Ke7 {[%clk 0:00:24]} 30. Bd5 {[%clk 0:00:32.6]}
30... Bxd5 {[%clk 0:00:19.7]} 31. Rxd5 {[%clk 0:00:33.5]} 31... exf3 {[%clk
0:00:19.1]} 32. Rf5 {[%clk 0:00:32.6]} 32... Ng6 {[%clk 0:00:19.3]} 33. Rxf3
{[%clk 0:00:32.2]} 33... Nxh4 {[%clk 0:00:19.6]} 34. Rh3 {[%clk 0:00:31.8]}
34... Nf5 {[%clk 0:00:17.2]} 35. Rxh5 {[%clk 0:00:31.3]} 35... Kf7 {[%clk
0:00:17.4]} 36. g6+ {[%clk 0:00:23.6]} 36... Kxg6 {[%clk 0:00:17.1]} 37. Rxf5
{[%clk 0:00:23.8]} 37... Kxf5 {[%clk 0:00:18]} 38. Kd2 {[%clk 0:00:23.4]} 38...
Ke4 {[%clk 0:00:17.7]} 39. Kc2 {[%clk 0:00:23]} 39... Ke5 {[%clk 0:00:15.4]} 40.
Kd3 {[%clk 0:00:22.2]} 40... Kd5 {[%clk 0:00:15.3]} 41. b3 {[%clk 0:00:21.4]}
41... axb3 {[%clk 0:00:14.6]} 42. axb3 {[%clk 0:00:21.3]} 42... Ke5 {[%clk
0:00:08]} 43. c4 {[%clk 0:00:18.3]} 43... Kd6 {[%clk 0:00:08.2]} 44. Kd4 {[%clk
0:00:15.7]} 44... bxc4 {[%clk 0:00:06.9]} 45. Kxc4 {[%clk 0:00:15.9]} 45... Kc6
{[%clk 0:00:07.2]} 46. Kb4 {[%clk 0:00:16.1]} 46... Kb6 {[%clk 0:00:07.4]} 47.
Kc4 {[%clk 0:00:16.6]} 47... Kc6 {[%clk 0:00:07.7]} 48. b4 {[%clk 0:00:17.5]}
48... Kb6 {[%clk 0:00:07.3]} 49. b5 {[%clk 0:00:18.4]} 49... Kb7 {[%clk
0:00:07.5]} 50. Kc5 {[%clk 0:00:19.3]} 50... Kc7 {[%clk 0:00:07.7]} 51. b6+
{[%clk 0:00:20.2]} 51... Kb7 {[%clk 0:00:08]} 52. Kb5 {[%clk 0:00:21.1]} 52...
Kb8 {[%clk 0:00:08]} 53. Kc6 {[%clk 0:00:22]} 53... Kc8 {[%clk 0:00:08.1]} 54.
Kc5 {[%clk 0:00:22.6]} 54... Kb7 {[%clk 0:00:08.2]} 55. Kb5 {[%clk 0:00:23.5]}
55... Kb8 {[%clk 0:00:08.5]} 56. Kc6 {[%clk 0:00:24.4]} 56... Ka8 {[%clk
0:00:08.8]} 57. Kb5 {[%clk 0:00:10]} 57... Kb7 {[%clk 0:00:08.5]} 58. Ka5 {[%clk
0:00:10.7]} 58... Kb8 {[%clk 0:00:08.5]} 59. Ka6 {[%clk 0:00:11.6]} 59... Ka8
{[%clk 0:00:08.6]} 60. Kb5 {[%clk 0:00:12]} 60... Kb7 {[%clk 0:00:08.7]} 61. Kc5
{[%clk 0:00:11.4]} 61... Kb8 {[%clk 0:00:07.7]} 62. Kb4 {[%clk 0:00:11.9]} 62...
Kb7 {[%clk 0:00:07.9]} 63. Kb5 {[%clk 0:00:12.3]} 1/2-1/2

[Event "Betsys MČR v online bleskovém šachu 2021"]
[Site "Chess.com"]
[Date "2021.04.17"]
[Round "4"]
[White "tryskomys"]
[Black "Cimrman"]
[Result "0-1"]
[WhiteElo "1476"]
[BlackElo "2338"]
[TimeControl "180+1"]
[EndTime "9:38:16 PDT"]
[Termination "Uživatel Cimrman zvítězil matem"]

1. e4 {[%clk 0:02:58.4]} 1... c6 {[%clk 0:02:59.9]} 2. Nc3 {[%clk 0:02:54.3]}
2... d5 {[%clk 0:03:00.8]} 3. Nf3 {[%clk 0:02:50.8]} 3... dxe4 {[%clk
0:02:56.6]} 4. Nxe4 {[%clk 0:02:49.9]} 4... Nd7 {[%clk 0:02:57.3]} 5. d4 {[%clk
0:02:41.8]} 5... Ngf6 {[%clk 0:02:56.6]} 6. Nxf6+ {[%clk 0:02:34.4]} 6... Nxf6
{[%clk 0:02:57.5]} 7. c3 {[%clk 0:02:34.1]} 7... Bg4 {[%clk 0:02:47.7]} 8. Be2
{[%clk 0:02:33.6]} 8... Bxf3 {[%clk 0:02:46.2]} 9. Bxf3 {[%clk 0:02:33]} 9... e6
{[%clk 0:02:46.6]} 10. O-O {[%clk 0:02:32]} 10... Bd6 {[%clk 0:02:45.8]} 11. Bg5
{[%clk 0:02:28.9]} 11... h6 {[%clk 0:02:43.7]} 12. Bxf6 {[%clk 0:02:22.4]} 12...
Qxf6 {[%clk 0:02:43.1]} 13. Qe2 {[%clk 0:02:04.6]} 13... O-O {[%clk 0:02:41.7]}
14. g3 {[%clk 0:02:00.9]} 14... Rac8 {[%clk 0:02:32.4]} 15. Bg2 {[%clk
0:01:59.6]} 15... b6 {[%clk 0:02:30.9]} 16. Rad1 {[%clk 0:01:53.3]} 16... Rfd8
{[%clk 0:02:29.2]} 17. Qf3 {[%clk 0:01:50.3]} 17... Qe7 {[%clk 0:02:27.2]} 18.
Rfe1 {[%clk 0:01:48.8]} 18... c5 {[%clk 0:02:19.9]} 19. dxc5 {[%clk 0:01:48.4]}
19... Bxc5 {[%clk 0:02:19.9]} 20. Rxd8+ {[%clk 0:01:47.8]} 20... Rxd8 {[%clk
0:02:20.8]} 21. Rd1 {[%clk 0:01:46.3]} 21... Rxd1+ {[%clk 0:02:14.7]} 22. Qxd1
{[%clk 0:01:46]} 22... Qf6 {[%clk 0:02:15.2]} 23. Qf3 {[%clk 0:01:42.6]} 23...
Qe5 {[%clk 0:02:09.9]} 24. Qe4 {[%clk 0:01:40.3]} 24... Qd6 {[%clk 0:02:08.3]}
25. Qa8+ {[%clk 0:01:37.4]} 25... Kh7 {[%clk 0:02:08.1]} 26. Qe4+ {[%clk
0:01:36.9]} 26... g6 {[%clk 0:02:06.8]} 27. Qe2 {[%clk 0:01:34.5]} 27... a5
{[%clk 0:02:05.3]} 28. h4 {[%clk 0:01:31.2]} 28... Kg7 {[%clk 0:02:02.9]} 29.
Kh2 {[%clk 0:01:15.5]} 29... h5 {[%clk 0:01:55.1]} 30. Bf3 {[%clk 0:01:13.2]}
30... e5 {[%clk 0:01:49.1]} 31. Kg2 {[%clk 0:01:12.6]} 31... Qf6 {[%clk
0:01:42.3]} 32. Be4 {[%clk 0:01:09.1]} 32... Qe6 {[%clk 0:01:38.4]} 33. Qd3
{[%clk 0:01:06.9]} 33... Qxa2 {[%clk 0:01:32]} 34. Bd5 {[%clk 0:00:57.4]} 34...
Qxb2 {[%clk 0:01:27.4]} 35. Qf3 {[%clk 0:00:56.2]} 35... f5 {[%clk 0:01:24.5]}
36. Bc4 {[%clk 0:00:54.9]} 36... e4 {[%clk 0:01:17.1]} 37. Qf4 {[%clk
0:00:54.2]} 37... Qxc3 {[%clk 0:01:11.6]} 38. Qc7+ {[%clk 0:00:52.9]} 38... Kh6
{[%clk 0:01:02]} 39. Qf4+ {[%clk 0:00:51.4]} 39... Kh7 {[%clk 0:01:01.4]} 40.
Qc7+ {[%clk 0:00:50.5]} 40... Qg7 {[%clk 0:01:01.2]} 41. Qb8 {[%clk 0:00:41.7]}
41... a4 {[%clk 0:00:56.8]} 42. Qa8 {[%clk 0:00:40.5]} 42... a3 {[%clk
0:00:55.9]} 43. Kg1 {[%clk 0:00:35]} 43... e3 {[%clk 0:00:51.4]} 44. fxe3 {[%clk
0:00:33.4]} 44... Bxe3+ {[%clk 0:00:52.3]} 45. Kg2 {[%clk 0:00:33.5]} 45... Bc5
{[%clk 0:00:52]} 46. Kh3 {[%clk 0:00:31.6]} 46... Kh6 {[%clk 0:00:48.3]} 47. Kg2
{[%clk 0:00:28.4]} 47... Qb2+ {[%clk 0:00:43.2]} 48. Kh3 {[%clk 0:00:27.9]}
48... Qf6 {[%clk 0:00:41.2]} 49. Kg2 {[%clk 0:00:22.8]} 49... Qd4 {[%clk
0:00:36.9]} 50. Kh3 {[%clk 0:00:18.9]} 50... Qg4+ {[%clk 0:00:35.8]} 51. Kg2
{[%clk 0:00:17.6]} 51... Qd4 {[%clk 0:00:33.3]} 52. Kh3 {[%clk 0:00:16.4]} 52...
f4 {[%clk 0:00:33.4]} 53. gxf4 {[%clk 0:00:12.9]} 53... Qe3+ {[%clk 0:00:33.1]}
54. Kg2 {[%clk 0:00:12.5]} 54... Qf2+ {[%clk 0:00:32.9]} 55. Kh3 {[%clk
0:00:12.6]} 55... Qd4 {[%clk 0:00:24.2]} 56. Kg2 {[%clk 0:00:12.3]} 56... b5
{[%clk 0:00:22.7]} 57. Bxb5 {[%clk 0:00:11.3]} 57... Qb2+ {[%clk 0:00:22.4]} 58.
Kh3 {[%clk 0:00:10.9]} 58... a2 {[%clk 0:00:22.6]} 59. Bc4 {[%clk 0:00:06.4]}
59... a1=Q {[%clk 0:00:20.2]} 60. f5 {[%clk 0:00:02.8]} 60... Qxa8 {[%clk
0:00:18.6]} 61. fxg6 {[%clk 0:00:01.5]} 61... Qbg2# {[%clk 0:00:17.9]} 0-1

[Event "Betsys MČR v online bleskovém šachu 2021"]
[Site "Chess.com"]
[Date "2021.04.17"]
[Round "4"]
[White "Johanna94"]
[Black "patrikvagner"]
[Result "0-1"]
[WhiteElo "2059"]
[BlackElo "1779"]
[TimeControl "180+1"]
[EndTime "9:38:16 PDT"]
[Termination "Uživatel patrikvagner zvítězil na čas"]

1. d4 {[%clk 0:03:00.9]} 1... d5 {[%clk 0:02:40.3]} 2. c4 {[%clk 0:03:00.1]}
2... c6 {[%clk 0:02:40.2]} 3. Nf3 {[%clk 0:02:59.8]} 3... e6 {[%clk 0:02:36.9]}
4. Nc3 {[%clk 0:02:57.5]} 4... Nf6 {[%clk 0:02:36.5]} 5. Bg5 {[%clk 0:02:55.8]}
5... Be7 {[%clk 0:02:36.2]} 6. e3 {[%clk 0:02:56]} 6... O-O {[%clk 0:02:35]} 7.
Qc2 {[%clk 0:02:54.2]} 7... Nbd7 {[%clk 0:02:34]} 8. Rd1 {[%clk 0:02:53.9]} 8...
h6 {[%clk 0:02:32.1]} 9. Bh4 {[%clk 0:02:53.2]} 9... a6 {[%clk 0:02:30.2]} 10.
a3 {[%clk 0:02:52.6]} 10... dxc4 {[%clk 0:02:28.8]} 11. Bxc4 {[%clk 0:02:52.2]}
11... b5 {[%clk 0:02:28.7]} 12. Ba2 {[%clk 0:02:52.2]} 12... Bb7 {[%clk
0:02:27]} 13. Bb1 {[%clk 0:02:47.9]} 13... Re8 {[%clk 0:02:22.7]} 14. O-O {[%clk
0:02:44.1]} 14... c5 {[%clk 0:02:21.5]} 15. dxc5 {[%clk 0:02:24.7]} 15... Qc7
{[%clk 0:02:19.8]} 16. b4 {[%clk 0:02:07.2]} 16... Nf8 {[%clk 0:02:16.8]} 17.
Bg3 {[%clk 0:02:00.8]} 17... Qc8 {[%clk 0:02:11]} 18. Rd2 {[%clk 0:01:50.7]}
18... Rd8 {[%clk 0:02:07.1]} 19. Rfd1 {[%clk 0:01:50.5]} 19... Rxd2 {[%clk
0:02:06.9]} 20. Qxd2 {[%clk 0:01:46.9]} 20... Qd8 {[%clk 0:02:03.7]} 21. Qxd8
{[%clk 0:01:46.3]} 21... Rxd8 {[%clk 0:02:03]} 22. Rxd8 {[%clk 0:01:46.1]} 22...
Bxd8 {[%clk 0:02:03.1]} 23. Ne5 {[%clk 0:01:41.2]} 23... N8d7 {[%clk 0:01:51.4]}
24. c6 {[%clk 0:01:27.7]} 24... Nxe5 {[%clk 0:01:45.8]} 25. cxb7 {[%clk
0:01:26.6]} 25... Bc7 {[%clk 0:01:40.9]} 26. Ne4 {[%clk 0:01:14.7]} 26... Nfd7
{[%clk 0:01:36.1]} 27. Nc5 {[%clk 0:01:10.9]} 27... f6 {[%clk 0:01:20.8]} 28. f4
{[%clk 0:01:03.1]} 28... Nxc5 {[%clk 0:01:17]} 29. bxc5 {[%clk 0:01:02]} 29...
Nc6 {[%clk 0:01:15.9]} 30. Be4 {[%clk 0:00:59.6]} 30... Nd8 {[%clk 0:01:10.5]}
31. Kf1 {[%clk 0:00:48.7]} 31... Kf7 {[%clk 0:01:10.2]} 32. Ke2 {[%clk
0:00:47.5]} 32... Ke7 {[%clk 0:01:10.3]} 33. Be1 {[%clk 0:00:45.3]} 33... Kd7
{[%clk 0:01:08.6]} 34. h3 {[%clk 0:00:36.7]} 34... Nc6 {[%clk 0:01:06.2]} 35.
Kd3 {[%clk 0:00:31.4]} 35... Bb8 {[%clk 0:01:05.3]} 36. f5 {[%clk 0:00:22.5]}
36... e5 {[%clk 0:01:03.9]} 37. g4 {[%clk 0:00:14.7]} 37... Kc7 {[%clk
0:01:03.4]} 38. h4 {[%clk 0:00:15.4]} 38... Kxb7 {[%clk 0:01:01.8]} 39. g5
{[%clk 0:00:16]} 39... hxg5 {[%clk 0:01:00.6]} 40. hxg5 {[%clk 0:00:16.7]} 40...
Kc7 {[%clk 0:00:59.6]} 41. gxf6 {[%clk 0:00:15.5]} 41... gxf6 {[%clk 0:00:59]}
42. Bh4 {[%clk 0:00:16.2]} 42... Ba7 {[%clk 0:00:55.7]} 43. Bxf6 {[%clk
0:00:14.9]} 43... Bxc5 {[%clk 0:00:55.6]} 44. Bxc6 {[%clk 0:00:11.3]} 44... Kxc6
{[%clk 0:00:55.2]} 45. Bxe5 {[%clk 0:00:08.8]} 45... Bxa3 {[%clk 0:00:54.9]} 46.
e4 {[%clk 0:00:08.9]} 46... b4 {[%clk 0:00:51.5]} 47. Kc4 {[%clk 0:00:08.1]}
47... a5 {[%clk 0:00:50.1]} 48. Bg7 {[%clk 0:00:05.9]} 48... Kd7 {[%clk
0:00:48.4]} 49. e5 {[%clk 0:00:06.3]} 49... Ke7 {[%clk 0:00:47.4]} 50. e6 {[%clk
0:00:06.3]} 50... Ke8 {[%clk 0:00:46.3]} 51. f6 {[%clk 0:00:04.4]} 51... b3
{[%clk 0:00:45.2]} 52. f7+ {[%clk 0:00:05.1]} 52... Kd8 {[%clk 0:00:43.8]} 53.
f8=Q+ {[%clk 0:00:04.8]} 53... Bxf8 {[%clk 0:00:43.2]} 54. e7+ {[%clk
0:00:04.2]} 54... Bxe7 {[%clk 0:00:42.4]} 55. Bb2 {[%clk 0:00:04.4]} 55... a4
{[%clk 0:00:39.3]} 56. Kc3 {[%clk 0:00:04.5]} 56... Kc7 {[%clk 0:00:38.6]} 57.
Kc4 {[%clk 0:00:04.9]} 57... Kb6 {[%clk 0:00:38.6]} 58. Bc1 {[%clk 0:00:05.1]}
58... Ka5 {[%clk 0:00:37.7]} 59. Bd2+ {[%clk 0:00:04]} 59... Kb6 {[%clk
0:00:37.2]} 60. Be3+ {[%clk 0:00:04.1]} 60... Ka6 {[%clk 0:00:36.5]} 61. Bc1
{[%clk 0:00:04.6]} 61... Bd6 {[%clk 0:00:35.5]} 62. Bd2 {[%clk 0:00:04.8]} 62...
Ba3 {[%clk 0:00:33.7]} 63. Kd3 {[%clk 0:00:02.5]} 63... Kb5 {[%clk 0:00:33]} 64.
Bf4 {[%clk 0:00:01.1]} 64... Bb4 {[%clk 0:00:32.3]} 65. Be5 {[%clk 0:00:01.4]}
65... a3 {[%clk 0:00:32.1]} 66. Bf6 {[%clk 0:00:01.4]} 66... a2 {[%clk 0:00:32]}
0-1